fUSD/lending_fUSD_20240630
["ID","MTS","AMOUNT","RATE_DAILY","PERIOD"]
[330737861,1719747039789,-500.0,0.0001399,3]
[330737862,1719747039800,-500.0,0.0001399,3]
[330737863,1719747039816,-500.0,0.0001399,3]
[330737864,1719747039827,-500.0,0.0001399,3]
[330737865,1719747039837,-500.0,0.0001399,3]
[330737866,1719747039847,-775.33,0.0001399,3]
[330737867,1719747039858,-758.43,0.0001399,3]
[330737868,1719747039868,-689.45,0.0001399,3]
[330737869,1719747039880,-500.0,0.0001399,3]
[330737870,1719747039890,-500.0,0.0001399,3]
[330737872,1719747039901,-500.0,0.0001399,3]
[330737875,1719747039913,-544.86,0.0001399,3]
[330737877,1719747039924,-500.0,0.0001399,3]
[330737878,1719747039934,-500.0,0.0001399,3]
[330737879,1719747039944,-510.21,0.0001399,3]
[330737880,1719747039954,-500.0,0.0001399,3]
[330737881,1719747039964,-500.0,0.0001399,3]
[330737882,1719747039974,-500.0,0.0001399,3]
[330737883,1719747039983,-500.0,0.0001399,3]
[330737884,1719747039994,-500.0,0.0001399,3]
[330737885,1719747040003,-500.0,0.0001399,3]
[330737886,1719747040013,-500.0,0.0001399,3]
[330737887,1719747040023,-500.0,0.0001399,3]
[330737888,1719747040035,-500.0,0.0001399,3]
[330737889,1719747040045,-159.64,0.0001399,3]
[330737890,1719747040055,-500.0,0.0001399,3]
[330737891,1719747040065,-500.0,0.0001399,3]
[330737892,1719747040076,-1488.13,0.0001399,3]
[330737893,1719747040087,-500.0,0.0001399,3]
[330737894,1719747040097,-987.76,0.0001399,3]
[330737895,1719747040107,-500.0,0.0001399,3]
[330737896,1719747040117,-500.0,0.00013991,3]
[330737897,1719747040127,-500.0,0.00013991,3]
[330737898,1719747040138,-17.73120257,0.00013991,3]
[330737899,1719747040773,-482.26879743,0.00013991,3]
[330737900,1719747040784,-500.0,0.00013991,3]
[330737901,1719747040795,-364.51830239,0.00013991,3]
[330737902,1719747040808,-135.48169761,0.00013991,3]
[330737903,1719747040818,-500.0,0.00013991,3]
[330737904,1719747040828,-262.46830239,0.00013991,3]
[330737906,1719747040841,-237.53169761,0.00013991,3]
[330737907,1719747040851,-500.0,0.00013991,3]
[330737909,1719747040860,-500.0,0.00013991,3]
[330737912,1719747040872,-500.0,0.00013991,3]
[330737913,1719747040882,-641.62,0.00013991,3]
[330737914,1719747040892,-500.0,0.00013991,3]
[330737915,1719747040903,-500.0,0.00013991,3]
[330737916,1719747040913,-500.0,0.00013991,3]
[330737917,1719747040922,-500.0,0.00013991,3]
[330737918,1719747040936,-844.47,0.00013991,3]
[330737919,1719747040946,-500.0,0.00013991,3]
[330737920,1719747040956,-500.0,0.00013991,3]
[330737921,1719747040966,-500.0,0.00013991,3]
[330737922,1719747040976,-500.0,0.00013991,3]
[330737923,1719747040986,-598.6,0.00013991,3]
[330737924,1719747040996,-500.0,0.00013991,3]
[330737925,1719747041006,-500.0,0.00013991,3]
[330737926,1719747041016,-500.0,0.00013991,3]
[330737927,1719747041027,-431.55551182,0.00013991,3]
[330737928,1719747041037,-586.86,0.00013991,3]
[330737929,1719747041047,-500.0,0.00013991,3]
[330737930,1719747041057,-504.26,0.00013991,3]
[330737931,1719747041067,-500.0,0.00013991,3]
[330737932,1719747041077,-500.0,0.00013991,3]
[330737933,1719747041088,-685.19,0.00013991,3]
[330737934,1719747041098,-682.04,0.00013991,3]
[330737935,1719747041108,-847.26,0.00013991,3]
[330737936,1719747041118,-933.49,0.00013991,3]
[330737937,1719747041127,-1019.07,0.00013991,3]
[330737938,1719747041138,-500.0,0.00013991,3]
[330737939,1719747041148,-1100.15,0.00013991,3]
[330737940,1719747041159,-500.0,0.00013991,3]
[330737941,1719747041168,-708.69,0.00013991,3]
[330737942,1719747041178,-500.0,0.00013991,3]
[330737943,1719747041188,-500.0,0.00013991,3]
[330737944,1719747041199,-852.87,0.00013991,3]
[330737945,1719747041209,-1067.15,0.00013991,3]
[330737946,1719747041219,-819.58,0.00013991,3]
[330737947,1719747041229,-552.24,0.00013991,3]
[330737948,1719747041239,-500.0,0.00013991,3]
[330737949,1719747041249,-782.19,0.00013991,3]
[330737950,1719747041259,-584.85,0.00013991,3]
[330737951,1719747041269,-904.93,0.00013991,3]
[330737952,1719747041281,-500.0,0.00013991,3]
[330737953,1719747041290,-500.0,0.00013991,3]
[330737954,1719747041300,-1736.49,0.00013991,3]
[330737955,1719747041309,-704.07,0.00013991,3]
[330737956,1719747041319,-500.0,0.00013991,3]
[330737957,1719747041328,-500.0,0.00013991,3]
[330737958,1719747041339,-729.76,0.00013991,3]
[330737959,1719747041349,-500.0,0.00013991,3]
[330737960,1719747041358,-1247.14,0.00013991,3]
[330737961,1719747041368,-500.0,0.00013991,3]
[330737962,1719747041377,-1385.05544248,0.00013991,3]
[330737963,1719747041391,-420.89455752,0.00013991,3]
[330737964,1719747041400,-500.0,0.00013991,3]
[330737965,1719747041410,-500.0,0.00013991,3]
[330737966,1719747041419,-500.0,0.00013991,3]
[330737967,1719747041429,-1236.02,0.00013991,3]
[330737968,1719747041439,-1741.57,0.00013991,3]
[330737969,1719747041449,-500.0,0.00013991,3]
[330737970,1719747041458,-2123.59,0.00013991,3]
[330737971,1719747041468,-500.0,0.00013991,3]
[330737972,1719747041478,-703.79,0.00013991,3]
[330737973,1719747041487,-793.9,0.00013991,3]
[330737974,1719747041496,-500.0,0.00013991,3]
[330737975,1719747041506,-1454.17,0.00013991,3]
[330737976,1719747041516,-500.0,0.00013991,3]
[330737977,1719747041526,-539.36,0.00013991,3]
[330737978,1719747041540,-16847.36,0.00013991,3]
[330737979,1719747041550,-500.0,0.00013991,3]
[330737980,1719747041560,-768.95,0.00013991,3]
[330737981,1719747041584,-1157.37,0.00013991,3]
[330737982,1719747041594,-500.0,0.00013991,3]
[330737983,1719747041603,-923.31,0.00013991,3]
[330737984,1719747041612,-1351.61,0.00013991,3]
[330737985,1719747041622,-1597.13,0.00013991,3]
[330737986,1719747041631,-500.0,0.00013991,3]
[330737987,1719747041640,-1749.75,0.00013991,3]
[330737988,1719747041650,-1752.67,0.00013991,3]
[330737989,1719747041659,-610.2,0.00013991,3]
[330737990,1719747041669,-1148.97,0.00013991,3]
[330737991,1719747041679,-1370.36,0.00013991,3]
[330737992,1719747041688,-1916.79,0.00013991,3]
[330737993,1719747041698,-500.0,0.00013991,3]
[330737994,1719747041707,-500.0,0.00013991,2]
[330737995,1719747041717,-589.2,0.00013992,2]
[330737996,1719747041727,-1723.77,0.00013993,3]
[330737997,1719747041740,-1212.86,0.00013993,3]
[330737998,1719747041750,-501.28,0.00013993,3]
[330737999,1719747041760,-1355.59,0.00013993,3]
[330738000,1719747041769,-1111.92,0.00013993,3]
[330738001,1719747041782,-1373.99,0.00013993,3]
[330738002,1719747041791,-1725.73,0.00013993,3]
[330738003,1719747041802,-1516.8,0.00013993,3]
[330738004,1719747041812,-1068.33,0.00013993,3]
[330738005,1719747041821,-744.98,0.00013993,3]
[330738006,1719747041831,-572.95,0.00013993,3]
[330738007,1719747041841,-856.45,0.00013993,3]
[330738008,1719747041850,-1204.1,0.00013993,3]
[330738009,1719747041860,-2238.71,0.00013993,3]
[330738010,1719747041870,-1099.26,0.00013993,3]
[330738011,1719747041879,-500.0,0.00013993,3]
[330738012,1719747041888,-500.0,0.00013993,3]
[330738013,1719747041897,-983.43,0.00013993,3]
[330738014,1719747041907,-609.14,0.00013993,3]
[330738015,1719747041917,-500.0,0.00013993,3]
[330738016,1719747041926,-2768.32,0.00013993,3]
[330738017,1719747041936,-1285.4,0.00013993,3]
[330738018,1719747041946,-1025.64778938,0.00013993,3]
[330738019,1719747041958,-482.99531256,0.00013993,3]
[330738020,1719747041970,-474.37904849,0.00013993,3]
[330738021,1719747041982,-1026.39824093,0.00013993,3]
[330738022,1719747041994,-1929.03960864,0.00013993,3]
[330738023,1719747042004,-500.0,0.00013999,2]
[330738024,1719747042014,-500.0,0.00013999,2]
[330738025,1719747042023,-500.0,0.00013999,2]
[330738026,1719747042034,-200.23735634,0.00013999,2]
[330738027,1719747042046,-299.76264366,0.00013999,2]
[330738028,1719747042056,-500.0,0.00013999,2]
[330738029,1719747042067,-500.0,0.00013999,2]
[330738030,1719747042077,-500.0,0.00013999,2]
[330738031,1719747042087,-200.23735634,0.00013999,2]
[330738032,1719747042099,-299.76264366,0.00013999,2]
[330738033,1719747042109,-500.0,0.00013999,2]
[330738034,1719747042119,-353.0482463,0.00013999,2]
[330738035,1719747042171,-146.9517537,0.00013999,2]
[330738036,1719747042181,-227.15261526,0.00013999,2]
[330738037,1719747042193,-272.84738474,0.00013999,2]
[330738038,1719747042203,-500.0,0.00013999,2]
[330738039,1719747042213,-418.30867641,0.00013999,2]
[330738040,1719747042223,-889.52,0.00013999,3]
[330738041,1719747042233,-1003.07,0.00013999,3]
[330738042,1719747042243,-589.2,0.00013999,2]
[330738043,1719747042254,-589.2,0.00013999,2]
[330738044,1719747042263,-589.2,0.00013999,2]
[330738045,1719747042274,-589.2,0.00013999,2]
[330738046,1719747042284,-589.2,0.00013999,2]
[330738047,1719747042295,-589.2,0.00013999,2]
[330738048,1719747042305,-589.2,0.00013999,2]
[330738049,1719747042315,-589.2,0.00013999,2]
[330738050,1719747042324,-589.2,0.00013999,2]
[330738051,1719747042334,-589.2,0.00013999,2]
[330738052,1719747042344,-589.2,0.00013999,2]
[330738053,1719747042355,-589.2,0.00013999,2]
[330738054,1719747042364,-589.2,0.00013999,2]
[330738055,1719747042375,-589.2,0.00013999,2]
[330738056,1719747042385,-836.46,0.00013999,3]
[330738057,1719747042395,-155.0,0.00013999,2]
[330738058,1719747042405,-155.0,0.00013999,2]
[330738059,1719747042415,-500.0,0.00013999,3]
[330738060,1719747042425,-615.0,0.00014,2]
[330738061,1719747042436,-1085627.97058579,0.00014,2]
[330738062,1719747042448,-3674.28117892,0.00014,2]
[330738063,1719747042460,-720.0,0.00014,2]
[330738083,1719747044625,-1220.2214538,0.00014,2]
[330738084,1719747044637,-5800.69742509,0.00014,2]
[330738085,1719747044649,-371.35077724,0.00014,2]
[330738086,1719747044661,-80407.151152,0.00014,2]
[330738087,1719747044672,-6900.0,0.00014,2]
[330738088,1719747044685,-30740.99999999,0.00014,2]
[330738089,1719747044845,-2117.27559751,0.00014,2]
[330738090,1719747044857,-526.41,0.00014,2]
[330738091,1719747044868,-2853.17794119,0.00014,2]
[330738092,1719747044880,-532.02303404,0.00014,2]
[330738093,1719747044901,-272.12555121,0.00014,2]
[330738094,1719747044914,-509.65820426,0.00014,2]
[330738095,1719747044926,-1421.277422,0.00014,2]
[330738096,1719747044937,-670.0,0.00014,2]
[330738097,1719747044949,-13039.24967014,0.00014,2]
[330738098,1719747044961,-56214.92467325,0.00014,2]
[330738099,1719747044972,-540.39,0.00014,2]
[330738100,1719747045002,-767.94362353,0.00014,2]
[330738101,1719747045775,-1520.08563124,0.00014,2]
[330738102,1719747045787,-1736.9583453,0.00014,2]
[330738103,1719747045799,-897.1367338,0.00014,2]
[330738104,1719747045813,-313.3815487,0.00014,2]
[330738106,1719747045825,-1522.70187766,0.00014,2]
[330738112,1719747045891,-4888.67430183,0.00014,2]
[330738141,1719747046328,-594.81,0.00014,2]
[330738142,1719747046344,-2518.74915113,0.00014,2]
[330738143,1719747046357,-3366.87959995,0.00014,2]
[330738144,1719747046369,-748.95226753,0.00014,2]
[330738145,1719747046380,-1084.74979351,0.00014,2]
[330738146,1719747046564,-322.8916,0.00014,2]
[330738147,1719747046576,-960.80812001,0.00014,2]
[330738148,1719747046588,-12206.36002382,0.00014,2]
[330738149,1719747046599,-1104.7334,0.00014,2]
[330738153,1719747150117,150.5,0.0001399,30]
[330738154,1719747150626,150.5,0.0001398,30]
[330738157,1719747155809,150.5,0.0001397,30]
[330738158,1719747156660,150.5,0.00015185,30]
[330738159,1719747156934,150.5,0.00015175,30]
[330738160,1719747157388,150.5,0.00015165,30]
[330738166,1719747270087,150.5,0.0001399,30]
[330738167,1719747270419,225.82,0.0001399,30]
[330738168,1719747270683,150.5,0.0001398,30]
[330738169,1719747271183,150.5,0.0001397,30]
[330738170,1719747271757,150.5,0.0001399,30]
[330738171,1719747271786,150.5,0.00015186,30]
[330738172,1719747272640,150.5,0.0001398,30]
[330738173,1719747272762,150.5,0.00015176,30]
[330738174,1719747272870,150.5,0.0001397,30]
[330738175,1719747272918,222.5,0.00015166,30]
[330738176,1719747273107,150.5,0.00015186,30]
[330738177,1719747273622,263.0,0.00015176,30]
[330738182,1719747439309,552.73,0.00011066,2]
[330738183,1719747495814,150.0,0.00011098,2]
[330738184,1719747495836,150.0,0.00011098,2]
[330738185,1719747495861,150.0,0.00011098,2]
[330738186,1719747495883,150.0,0.00011098,2]
[330738187,1719747495908,51.92564271,0.00011098,2]
[330738188,1719747541974,150.0,0.00011098,2]
[330738189,1719747541995,150.0,0.00011098,2]
[330738190,1719747542016,150.0,0.00011098,2]
[330738191,1719747542036,158.92955144,0.00011098,2]
[330738192,1719747542060,291.07044856,0.00011098,2]
[330738194,1719747553718,155.2538086,0.00011098,2]
[330738195,1719747567914,360.85519415,0.00011098,2]
[330738213,1719747813812,4788.82155278,0.00011098,2]
[330738220,1719747989290,525.09,0.00010665,2]
[330738224,1719748018125,-253.7846707,0.00011197,2]
[330738225,1719748018144,-74.27927468,0.00011199,2]
[330738234,1719748118270,401.57927817,0.00011098,2]
[330738265,1719748231947,-2537.31978779,0.00011196,2]
[330738267,1719748231957,-2375.74966593,0.00011199,2]
[330738268,1719748231967,-253.85497867,0.00012273,2]
[330738269,1719748231977,-3092.01499812,0.0001251,2]
[330738270,1719748231986,-606.00673667,0.00012518,2]
[330738271,1719748232158,-213.18326333,0.00012518,2]
[330738272,1719748232167,-11731.65197619,0.00012536,2]
[330738273,1719748232272,-1723.49402903,0.00012536,2]
[330738274,1719748232285,-10444.85399478,0.00012536,2]
[330738275,1719748232296,-150.0,0.00012561,2]
[330738276,1719748232308,-250.0,0.00012584,2]
[330738277,1719748232319,-173.41,0.00012603,2]
[330738278,1719748232329,-250.0,0.00012603,2]
[330738279,1719748232340,-500.0,0.00012654,2]
[330738280,1719748232353,-154.63,0.00012707,2]
[330738281,1719748232362,-150.0,0.0001274,2]
[330738282,1719748232373,-600.0,0.00012748,2]
[330738283,1719748232383,-165.26,0.00012765,2]
[330738284,1719748232392,-154.63,0.00012873,2]
[330738285,1719748232402,-525.09,0.00012929,2]
[330738286,1719748232411,-154.63,0.00013038,2]
[330738287,1719748232421,-277.94,0.00013044,2]
[330738288,1719748232431,-400.0,0.00013085,2]
[330738289,1719748232442,-154.63,0.00013204,2]
[330738290,1719748232452,-154.63,0.0001337,2]
[330738291,1719748232462,-523.96690629,0.00013452,2]
[330738292,1719748232472,-7996.73956148,0.00013472,2]
[330738293,1719748232484,-322.46768831,0.00013472,2]
[330738294,1719748232570,-917.20597639,0.00013472,2]
[330738295,1719748232579,-412.03672268,0.00013516,2]
[330738296,1719748232588,-329.55730093,0.00013699,2]
[330738299,1719748237999,-499.25269907,0.00013699,2]
[330738300,1719748238010,-1398.37,0.00013699,2]
[330738301,1719748238020,-236.22302356,0.00013727,2]
[330738302,1719748238036,-74.24318639,0.00013759,2]
[330738303,1719748238053,-938.63073133,0.00013759,2]
[330738304,1719748238063,-499.99,0.00013849,2]
[330738305,1719748238073,-183.30140412,0.0001386,2]
[330738306,1719748238086,-816.69859588,0.0001386,2]
[330738307,1719748238096,-2764.83331077,0.00013887,2]
[330738308,1719748238117,-16253.62019821,0.00013887,2]
[330738309,1719748238128,-6316.46665228,0.00013887,2]
[330738310,1719748238139,-1822.21851093,0.00013888,2]
[330738323,1719748240024,-251.81312797,0.00013759,2]
[330738325,1719748240035,-1567.08687203,0.00013888,2]
[330738328,1719748240050,-356.19588052,0.00013888,2]
[330738332,1719748240087,-552.33090042,0.00013888,2]
[330738333,1719748240098,-309.88806627,0.00013888,2]
[330738334,1719748240201,-320.10297877,0.00013888,2]
[330738335,1719748240215,-1884.13369106,0.00013888,2]
[330738336,1719748240224,-466.9961,0.00013888,2]
[330738337,1719748240233,-86.15966581,0.00013888,2]
[330738338,1719748240246,-1625.96453914,0.00013888,2]
[330738339,1719748240284,-1591.59009505,0.00013888,2]
[330738340,1719748240294,-302.04558578,0.00013888,2]
[330738341,1719748240303,-1573.27524158,0.00013889,2]
[330738342,1719748240314,-1471.23210154,0.00013889,2]
[330738343,1719748240331,-346.73481017,0.00013889,2]
[330738344,1719748240343,-1218.78918912,0.00013889,2]
[330738345,1719748240356,-300.0,0.00013889,2]
[330738346,1719748240393,-326.72188698,0.00013889,2]
[330738349,1719748240987,-2184.64127061,0.00013889,2]
[330738350,1719748240996,-4837.4856286,0.0001389,2]
[330738351,1719748241009,-3377.68586456,0.0001389,2]
[330738352,1719748241032,-6703.68000637,0.0001389,2]
[330738353,1719748241048,-4051.73072007,0.0001389,2]
[330738361,1719748242957,-5150.203758,0.0001363,2]
[330738362,1719748242967,-6029.4177804,0.0001389,2]
[330738363,1719748242977,-219.86,0.0001389,3]
[330738364,1719748242986,-544.30071955,0.00013899,2]
[330738365,1719748242996,-3499.89026122,0.000139,2]
[330738366,1719748243006,-1669.48132479,0.000139,2]
[330738367,1719748243015,-6419.6178,0.000139,2]
[330738368,1719748243024,-201.78232901,0.000139,2]
[330738369,1719748243037,-168.91612717,0.000139,2]
[330738370,1719748243047,-388.09795838,0.000139,2]
[330738371,1719748243061,-319.95778528,0.000139,2]
[330738372,1719748243072,-6246.05724122,0.000139,2]
[330738373,1719748243096,-612.99845059,0.000139,2]
[330738374,1719748243107,-500.0,0.0001394,2]
[330738375,1719748243118,-200.0,0.0001394,2]
[330738376,1719748243127,-406.5822,0.00013973,2]
[330738377,1719748243136,-1081.54,0.00013978,2]
[330738378,1719748243145,-1081.54,0.00013978,2]
[330738379,1719748243154,-1081.54,0.00013978,2]
[330738380,1719748243163,-500.0,0.00013987,3]
[330738381,1719748243172,-500.0,0.00013987,3]
[330738382,1719748243182,-500.0,0.00013987,3]
[330738383,1719748243191,-500.0,0.00013987,3]
[330738384,1719748243200,-522.34,0.00013987,3]
[330738385,1719748243209,-500.0,0.00013987,3]
[330738386,1719748243219,-491.0,0.00013987,3]
[330738387,1719748243228,-500.0,0.00013987,3]
[330738388,1719748243237,-500.0,0.00013987,3]
[330738389,1719748243246,-587.82,0.00013987,3]
[330738390,1719748243255,-659.92,0.00013987,3]
[330738391,1719748243265,-500.0,0.00013987,3]
[330738392,1719748243275,-500.0,0.00013987,3]
[330738393,1719748243283,-500.0,0.00013987,3]
[330738394,1719748243293,-500.0,0.00013987,3]
[330738395,1719748243302,-500.0,0.00013987,3]
[330738396,1719748243311,-500.0,0.00013987,3]
[330738397,1719748243320,-500.0,0.00013987,3]
[330738398,1719748243330,-500.0,0.00013987,3]
[330738399,1719748243339,-500.0,0.00013987,3]
[330738400,1719748243350,-500.0,0.00013987,3]
[330738401,1719748243360,-5000.0,0.00013987,3]
[330738402,1719748243369,-513.64,0.00013987,3]
[330738403,1719748243378,-500.0,0.00013987,3]
[330738404,1719748243387,-500.0,0.00013987,3]
[330738405,1719748243395,-500.0,0.00013987,3]
[330738406,1719748243404,-500.0,0.00013987,3]
[330738407,1719748243416,-500.0,0.00013987,3]
[330738408,1719748243425,-500.0,0.00013987,3]
[330738409,1719748243434,-500.0,0.00013987,3]
[330738410,1719748243443,-500.0,0.00013987,3]
[330738411,1719748243452,-621.81,0.00013987,3]
[330738412,1719748243461,-500.0,0.00013987,3]
[330738413,1719748243470,-500.0,0.00013987,3]
[330738414,1719748243478,-500.0,0.00013987,3]
[330738415,1719748243487,-500.0,0.00013987,3]
[330738416,1719748243496,-500.0,0.00013987,3]
[330738417,1719748243506,-500.0,0.00013987,3]
[330738418,1719748243515,-575.21,0.00013987,3]
[330738419,1719748243524,-500.0,0.00013987,3]
[330738420,1719748243534,-500.0,0.00013987,3]
[330738421,1719748243543,-592.86,0.00013987,3]
[330738422,1719748243552,-500.0,0.00013987,3]
[330738423,1719748243562,-500.0,0.00013987,3]
[330738424,1719748243572,-500.0,0.00013987,3]
[330738425,1719748243582,-500.0,0.00013987,3]
[330738426,1719748243591,-500.0,0.00013987,3]
[330738427,1719748243601,-500.0,0.00013987,3]
[330738428,1719748243611,-500.0,0.00013987,3]
[330738429,1719748243620,-500.0,0.00013987,3]
[330738430,1719748243630,-500.0,0.00013987,3]
[330738431,1719748243639,-500.0,0.00013987,3]
[330738432,1719748243649,-500.0,0.00013987,3]
[330738433,1719748243659,-500.0,0.00013987,3]
[330738434,1719748243668,-500.0,0.00013987,3]
[330738435,1719748243677,-500.0,0.00013987,3]
[330738436,1719748243687,-500.0,0.00013987,3]
[330738437,1719748243696,-500.0,0.00013987,3]
[330738438,1719748243705,-500.0,0.00013987,3]
[330738439,1719748243715,-500.0,0.00013987,3]
[330738440,1719748243724,-818.06,0.00013987,3]
[330738441,1719748243733,-554.44,0.00013987,3]
[330738442,1719748243743,-624.18,0.00013987,3]
[330738443,1719748243752,-1162.42,0.00013987,3]
[330738445,1719748243762,-500.0,0.00013987,3]
[330738446,1719748243772,-1066.98,0.00013987,3]
[330738447,1719748243782,-500.0,0.00013987,3]
[330738448,1719748243791,-500.0,0.00013987,2]
[330738449,1719748243800,-558.91,0.00013987,3]
[330738450,1719748243809,-500.0,0.00013987,3]
[330738451,1719748243818,-500.0,0.00013987,3]
[330738452,1719748243827,-637.94,0.00013987,3]
[330738453,1719748243837,-500.0,0.00013987,3]
[330738454,1719748243848,-500.0,0.00013987,3]
[330738455,1719748243858,-500.0,0.00013987,3]
[330738456,1719748243867,-500.0,0.00013987,3]
[330738457,1719748243876,-500.0,0.00013987,3]
[330738458,1719748243886,-500.0,0.00013987,3]
[330738459,1719748243895,-500.0,0.00013987,3]
[330738460,1719748243906,-500.0,0.00013987,3]
[330738461,1719748243917,-500.0,0.00013987,3]
[330738462,1719748243927,-500.0,0.00013987,3]
[330738463,1719748243936,-500.0,0.00013987,3]
[330738464,1719748243946,-500.0,0.00013987,3]
[330738465,1719748243955,-500.0,0.00013987,3]
[330738466,1719748243964,-500.0,0.00013987,3]
[330738467,1719748243973,-500.0,0.00013987,3]
[330738468,1719748243983,-500.0,0.00013987,3]
[330738469,1719748243993,-500.0,0.00013987,3]
[330738470,1719748244003,-500.0,0.00013987,3]
[330738471,1719748244011,-4582.79,0.00013987,3]
[330738472,1719748244020,-500.0,0.00013987,3]
[330738473,1719748244030,-1932.6,0.00013987,3]
[330738474,1719748244043,-500.0,0.00013987,3]
[330738475,1719748244052,-500.0,0.00013987,3]
[330738476,1719748244063,-500.0,0.00013987,3]
[330738477,1719748244074,-500.0,0.00013987,3]
[330738478,1719748244085,-526.18,0.00013987,3]
[330738479,1719748244106,-500.0,0.00013987,3]
[330738480,1719748244120,-500.0,0.00013987,3]
[330738481,1719748244131,-599.13192019,0.00013987,3]
[330738482,1719748244142,-500.0,0.00013987,3]
[330738483,1719748244152,-500.0,0.00013987,3]
[330738484,1719748244164,-500.0,0.00013987,3]
[330738485,1719748244174,-500.0,0.00013987,3]
[330738486,1719748244184,-646.81,0.00013987,3]
[330738487,1719748244194,-1402.7,0.00013987,3]
[330738488,1719748244203,-500.0,0.00013987,3]
[330738489,1719748244213,-500.0,0.00013987,3]
[330738490,1719748244223,-500.0,0.00013987,3]
[330738491,1719748244233,-558.61,0.00013987,3]
[330738492,1719748244243,-500.0,0.00013987,3]
[330738493,1719748244253,-556.56,0.00013987,3]
[330738494,1719748244262,-500.0,0.00013987,3]
[330738495,1719748244272,-839.04,0.00013987,3]
[330738496,1719748244281,-218.54064132,0.00013987,3]
[330738497,1719748244291,-500.0,0.00013987,3]
[330738498,1719748244302,-500.0,0.00013987,3]
[330738499,1719748244312,-645.01,0.00013987,3]
[330738500,1719748244323,-500.0,0.00013987,3]
[330738501,1719748244335,-500.0,0.00013987,3]
[330738502,1719748244348,-500.0,0.00013987,3]
[330738503,1719748244359,-500.0,0.00013987,3]
[330738504,1719748244369,-500.0,0.00013987,3]
[330738505,1719748244380,-644.48,0.00013987,3]
[330738506,1719748244390,-500.0,0.00013987,3]
[330738507,1719748244402,-500.0,0.00013987,3]
[330738508,1719748244413,-2842.51,0.00013987,3]
[330738509,1719748244424,-911.78,0.00013987,3]
[330738510,1719748244434,-728.04,0.00013987,3]
[330738511,1719748244444,-1032.71,0.00013987,3]
[330738512,1719748244454,-500.0,0.00013987,3]
[330738513,1719748244465,-500.0,0.00013987,3]
[330738514,1719748244476,-500.0,0.00013987,3]
[330738515,1719748244485,-748.0,0.00013987,3]
[330738516,1719748244495,-500.0,0.00013987,3]
[330738517,1719748244506,-500.0,0.00013987,3]
[330738518,1719748244515,-930.66,0.00013987,3]
[330738519,1719748244526,-500.0,0.00013987,3]
[330738520,1719748244537,-1054.3,0.00013987,3]
[330738521,1719748244546,-500.0,0.00013987,3]
[330738522,1719748244555,-654.35,0.00013987,3]
[330738523,1719748244564,-500.0,0.00013987,3]
[330738524,1719748244574,-1055.34,0.00013987,3]
[330738525,1719748244583,-2124.81,0.00013987,3]
[330738526,1719748244593,-500.0,0.00013987,3]
[330738527,1719748244603,-616.76,0.00013987,3]
[330738528,1719748244613,-500.0,0.00013987,3]
[330738529,1719748244623,-500.0,0.00013987,3]
[330738530,1719748244632,-500.0,0.00013987,3]
[330738531,1719748244642,-500.0,0.00013987,3]